bitfinex/quotes_ETHUSD_20240731
["timestamp","ask_amount","ask_price","bid_price","bid_amount"]
[1722430160206,3.00121,3332.0,3331.2,2.71359]
[1722430160362,3.00121,3332.0,3331.3,0.10046375]
[1722430161915,3.0014,3331.8,3331.3,0.10046375]
[1722430162219,3.0014,3331.8,3330.8,6.00222]
[1722430162220,3.00174,3331.4,3330.9,3.0]
[1722430162686,3.00174,3331.4,3330.6,2.3654]
[1722430162888,3.00174,3331.4,3330.6,2.90194]
[1722430163096,3.00175,3331.4,3330.6,2.3654]
[1722430164128,3.00184,3331.3,3330.6,2.3654]
[1722430164779,3.00193,3331.2,3330.6,2.3654]
[1722430164989,3.00193,3331.2,3330.2,2.2976]
[1722430165411,3.00201,3331.1,3330.2,2.2976]
[1722430165623,3.00201,3331.1,3330.2,3.157702]
[1722430165918,3.00201,3331.1,3330.3,3.0]
[1722430166123,3.302024,3331.3,3330.3,3.3005]
[1722430166630,3.00215,3331.0,3330.3,0.3005]
[1722430166917,3.00201,3331.1,3330.3,0.3005]
[1722430166918,3.0022,3330.9,3330.3,0.3005]
[1722430167284,3.00234,3330.8,3329.8,0.3005]
[1722430167509,3.00238,3330.7,3329.8,0.866381]
[1722430168288,3.00223,3330.9,3329.8,0.866381]
[1722430168493,3.00223,3330.9,3329.8,0.3005]
[1722430168722,3.00242,3330.7,3329.8,0.3005]
[1722430168931,3.00242,3330.7,3329.7,2.3551]
[1722430168932,5.8115424,3331.2,3330.0,0.3005]
[1722430169137,5.8115424,3331.2,3329.9,3.003]
[1722430169138,3.00169,3331.5,3330.2,0.3005]
[1722430169345,0.565247,3331.6,3330.4,3.00257]
[1722430169502,3.00166,3331.5,3330.4,3.30307]
[1722430169832,0.3566907,3331.4,3330.4,3.30307]
[1722430170009,0.3566907,3331.4,3330.4,0.3005]
[1722430170220,3.3584407,3331.4,3330.4,0.3005]
[1722430171026,0.3566907,3331.4,3330.4,3.30314]
[1722430171399,0.3566907,3331.4,3330.5,3.10412885]
[1722430171736,5.45498,3331.8,3330.6,5.46488]
[1722430171900,3.00149,3331.7,3330.6,8.46488]
[1722430172102,0.545509,3331.6,3330.7,0.10155698]
[1722430172318,3.00156,3331.6,3330.7,0.10155698]
[1722430172491,12.86505,3331.8,3330.7,0.10155698]
[1722430173029,3.00151,3331.7,3330.7,0.10155698]
[1722430173529,7.41,3331.8,3330.8,3.00225]
[1722430173838,11.452553,3331.8,3330.9,0.1016537]
[1722430174003,11.452553,3331.8,3330.7,3.00232]
[1722430174206,11.452553,3331.8,3331.0,0.10164998]
[1722430174440,11.452553,3331.8,3330.7,3.00232]
[1722430174441,1.1452553,3331.7,3330.8,3.00227]
[1722430174733,1.1452553,3331.7,3331.1,0.10164998]
[1722430174958,1.1452553,3331.7,3330.8,3.00227]
[1722430175152,1.1452553,3331.7,3331.2,0.10164998]
[1722430175293,0.95963883,3331.6,3330.8,3.00227]
[1722430175493,0.95963883,3331.6,3331.3,0.10164998]
[1722430175693,0.95963883,3331.6,3330.8,3.00227]
[1722430176018,0.95963883,3331.6,3330.9,0.10164998]
[1722430176348,0.95963883,3331.6,3330.7,3.00232]
[1722430176639,0.95963883,3331.6,3330.7,4.149054]
[1722430176823,8.451133,3331.8,3330.8,3.10386998]
[1722430178040,8.451133,3331.8,3331.1,3.00193]
[1722430178041,7.41,3331.8,3331.1,3.00193]
[1722430178334,7.41,3331.8,3331.3,3.00176]
[1722430178637,7.41,3332.2,3331.5,3.00164]
[1722430178870,7.41,3332.2,3331.5,3.53778119]
[1722430179041,7.41,3332.2,3331.7,3.00139]
[1722430179238,12.43,3332.6,3331.8,3.00133]
[1722430179444,12.43,3332.6,3331.6,6.00302]
[1722430179634,12.43,3332.6,3331.9,0.10151233]
[1722430180012,12.43,3332.6,3331.6,3.00148]
[1722430180013,14.714048,3332.6,3331.6,3.00148]
[1722430180262,14.714048,3332.6,3332.0,0.10151233]
[1722430180263,17.714758,3332.6,3332.0,0.10151233]
[1722430180473,17.714758,3332.6,3331.5,3.00163]
[1722430180765,14.714048,3332.6,3332.1,0.10151233]
[1722430180975,14.714048,3332.6,3331.8,3.00133]
[1722430181125,14.714048,3332.6,3332.2,0.10151233]
[1722430181325,14.714048,3332.6,3331.8,3.00133]
[1722430181521,7.41,3332.7,3332.3,0.10135611]
[1722430181852,7.41,3332.7,3332.1,2.479]
[1722430182175,7.41,3332.7,3332.4,0.10135983]
[1722430182325,7.41,3332.7,3332.1,2.479]
[1722430182326,3.00031,3333.0,3332.1,2.479]
[1722430182741,3.00031,3333.0,3332.2,0.10135983]
[1722430183136,1.777037,3333.1,3332.2,0.10135983]
[1722430183482,2.2918,3332.5,3331.2,2.4689]
[1722430183641,2.2918,3332.5,3332.3,0.10075729]
[1722430183642,9.7018,3332.5,3332.3,0.10075729]
[1722430183842,1.270252,3332.4,3331.5,3.00164]
[1722430184070,10.41072,3332.6,3332.4,0.10075729]
[1722430184251,10.41072,3332.6,3331.6,3.00154]
[1722430184252,3.00072,3332.6,3331.6,3.00154]
[1722430184452,3.00072,3332.6,3332.5,0.10075729]
[1722430184770,3.00072,3332.6,3331.5,3.00164]
[1722430184975,7.41,3332.7,3331.5,3.00157]
[1722430185138,1.341107,3332.6,3331.7,3.00146]
[1722430185765,1.341107,3332.6,3331.8,0.10075729]
[1722430186354,1.341107,3332.6,3331.7,3.00145]
[1722430186680,1.341107,3332.6,3331.9,2.2714]
[1722430187387,1.341107,3332.6,3332.0,0.10077216]
[1722430188089,3.60559616,3332.5,3332.0,0.10077216]
[1722430188286,3.00084,3332.4,3332.0,0.10077216]
[1722430188491,3.00084,3332.4,3331.5,2.3424]
[1722430188807,0.60479616,3332.5,3331.5,2.3424]
[1722430188992,0.60479616,3332.5,3331.6,0.1008205]
[1722430189190,0.36054762,3332.4,3331.6,0.1008205]
[1722430189793,3.00098,3332.3,3331.6,0.1008205]
[1722430190897,0.36054762,3332.4,3331.6,0.1008205]
[1722430191097,3.60558616,3332.5,3331.6,0.1008205]
[1722430192386,3.00084,3332.4,3331.6,0.1008205]
[1722430193191,3.00093,3332.3,3331.6,0.1008205]
[1722430193394,3.00102,3332.2,3331.6,0.1008205]
[1722430193682,6.00212,3332.2,3331.6,0.1008205]
[1722430193919,0.60479616,3332.5,3331.6,0.1008205]
[1722430193920,0.600212,3332.1,3331.6,0.1008205]
[1722430194099,3.00134,3331.9,3331.6,0.1008205]
[1722430194318,3.00134,3331.9,3330.7,5.95381]
[1722430194319,3.00139,3331.8,3330.8,2.2597]
[1722430194793,3.00139,3331.8,3330.9,0.10089488]
[1722430196094,3.00125,3332.0,3330.9,0.10089488]
[1722430196294,1.041125,3332.0,3330.9,1.20228437]
[1722430196504,1.041125,3332.0,3331.0,3.00209]
[1722430196843,1.041125,3332.0,3331.1,0.10104364]
[1722430197148,1.041125,3332.0,3330.9,3.0]
[1722430197149,3.00129,3331.9,3330.9,3.0]
[1722430197294,3.00138,3331.8,3331.2,0.10108456]
[1722430197494,3.00138,3331.8,3330.9,3.0]
[1722430197848,3.00147,3331.7,3330.8,5.2597]
[1722430197990,3.00147,3331.7,3331.0,0.10108456]
[1722430198192,3.00147,3331.7,3330.8,5.2597]
[1722430198398,3.00159,3331.6,3330.8,5.2597]
[1722430198601,3.00159,3331.6,3330.9,0.10108456]
[1722430199039,6.00323,3331.6,3330.9,0.10108456]
[1722430199208,3.00165,3331.5,3330.9,0.10108456]
[1722430200337,2.679359,3331.6,3330.9,0.10108456]
[1722430200639,5.680969,3331.6,3330.9,0.10108456]
[1722430200940,3.4055815,3331.9,3330.9,0.10108456]
[1722430201146,2.59948562,3332.3,3331.2,2.4241]
[1722430201435,3.00121,3332.0,3331.3,0.10115896]
[1722430201740,3.00121,3332.0,3330.9,5.42621]
[1722430202042,0.300121,3331.9,3330.9,5.42621]
[1722430202249,3.301431,3331.9,3331.0,0.10115896]
[1722430202791,6.302791,3331.9,3331.0,0.10115896]
[1722430203027,0.300121,3331.9,3331.0,0.10115896]
[1722430203236,0.300121,3331.9,3331.0,3.65599586]
[1722430203393,7.41,3332.2,3331.2,3.00186]
[1722430203587,7.41,3332.2,3331.3,0.10109572]
[1722430203819,7.41,3332.2,3331.1,5.1219]
[1722430203820,3.00117,3332.1,3331.1,5.1219]
[1722430204046,3.00117,3332.1,3331.4,0.10109572]
[1722430204047,3.00133,3331.9,3331.4,0.10109572]
[1722430204203,3.00133,3331.9,3331.1,2.4709]
[1722430204204,3.00145,3331.8,3331.1,2.4709]
[1722430204591,3.00147,3331.7,3331.1,2.4709]
[1722430204809,3.00147,3331.7,3331.2,0.10135235]
[1722430205017,3.00147,3331.7,3330.8,5.3765]
[1722430205224,3.00147,3331.7,3331.3,0.10134491]
[1722430205432,0.600292,3331.6,3330.8,5.3765]
[1722430205757,3.00146,3331.8,3331.4,0.10134491]
[1722430206047,3.00146,3331.8,3330.8,5.3765]
[1722430206244,3.00151,3331.7,3331.5,0.10134491]
[1722430206453,0.600296,3331.6,3330.8,5.3765]
[1722430207448,3.00151,3331.7,3330.8,5.3765]
[1722430207819,3.00137,3331.9,3330.9,3.00218]
[1722430208336,3.429917,3332.0,3330.8,5.3765]
[1722430208540,3.00111,3332.1,3331.0,6.00414]
[1722430208715,3.00111,3332.1,3331.0,6.00408]
[1722430208898,1.60129527,3332.1,3331.2,3.00191]
[1722430209101,1.60129527,3332.1,3331.1,2.4771]
[1722430209342,3.00131,3331.9,3331.1,2.4771]
[1722430209897,3.0014,3331.8,3331.1,2.4771]
[1722430210105,0.30014,3331.7,3331.1,2.4771]
[1722430210621,4.60242527,3332.1,3331.1,2.4771]
[1722430210926,4.60242527,3332.1,3332.0,0.2]
[1722430211450,3.00113,3332.1,3332.0,0.2]
[1722430212249,6.00226,3332.1,3332.0,0.2]
[1722430215152,6.00226,3332.1,3332.0,0.4]
[1722430215514,8.60504962,3332.1,3332.0,0.4]
[1722430215710,6.00226,3332.1,3332.0,0.4]
[1722430215969,6.86276496,3332.1,3332.0,0.4]
[1722430217182,0.86050496,3332.1,3332.0,0.4]
[1722430217769,3.86161496,3332.1,3332.0,0.4]
[1722430217924,0.86050496,3332.1,3332.0,0.4]
[1722430218555,3.86161496,3332.1,3332.0,0.4]
[1722430219171,3.86161496,3332.1,3332.0,0.6]
[1722430219865,6.46565312,3332.1,3332.0,0.6]
[1722430220379,3.86161496,3332.1,3332.0,0.6]
[1722430220678,6.46565312,3332.1,3332.0,0.6]
[1722430220866,3.86161496,3332.1,3332.0,0.6]
[1722430222748,6.86272496,3332.1,3332.0,0.6]
[1722430222935,9.98230927,3332.1,3332.0,0.6]
[1722430223139,9.98230927,3332.1,3332.0,0.8]
[1722430224226,6.86272496,3332.1,3332.0,0.8]
[1722430225538,9.86383496,3332.1,3332.0,0.8]
[1722430225727,18.87754496,3332.1,3332.0,0.8]
[1722430227549,18.87754496,3332.1,3332.0,1.0]
[1722430227970,19.19128172,3332.1,3332.0,1.0]
[1722430229070,19.19128172,3332.1,3332.0,0.925]
[1722430229269,3.00213,3331.0,3330.4,2.2801]
[1722430229436,2.60421714,3331.1,3330.1,2.4199]
[1722430229623,6.00472,3330.8,3330.1,2.66189]
[1722430229822,5.60635714,3331.0,3330.1,2.4199]
[1722430230068,5.85227714,3331.2,3330.1,5.4228]
[1722430230222,5.60618714,3331.2,3330.1,5.4228]
[1722430230425,2.60421714,3331.2,3330.2,5.45581]
[1722430230620,2.60421714,3331.3,3330.2,2.453]
[1722430230836,3.00202,3331.1,3330.2,2.453]
[1722430231682,3.00202,3331.1,3330.3,0.09830233]
[1722430231837,3.00202,3331.1,3330.3,0.35943766]
[1722430232168,6.00411,3331.1,3330.3,0.39000608]
[1722430232375,5.60563035,3331.2,3330.3,0.39000608]
[1722430232675,3.00203,3331.1,3330.3,0.39000608]
[1722430233025,3.0022,3330.9,3330.3,0.12887075]
[1722430233329,3.00232,3330.8,3330.3,0.12887075]
[1722430233775,5.00795035,3331.2,3329.7,3.0]
[1722430233776,3.00238,3330.7,3329.7,3.0]
[1722430234069,3.00256,3330.5,3330.4,0.12889309]
[1722430234244,3.00256,3330.5,3329.6,2.3421]
[1722430234563,3.00256,3330.5,3330.4,0.12889309]
[1722430234739,3.00256,3330.5,3329.6,2.3421]
[1722430235120,3.00264,3330.4,3329.7,0.12889309]
[1722430235322,3.00277,3330.3,3329.7,0.12889309]
[1722430237239,3.00288,3330.2,3329.7,0.12889309]
[1722430237761,3.00269,3330.4,3329.7,0.12889309]
[1722430237979,2.60333293,3330.7,3329.7,0.12889309]
[1722430238271,3.00262,3330.5,3329.8,0.24709931]
[1722430238439,3.00262,3330.5,3329.8,0.37655066]
[1722430239475,6.00487,3330.7,3329.8,0.37655066]
[1722430239627,3.00242,3330.7,3329.8,0.37655066]
[1722430239827,3.00256,3330.5,3329.8,0.37655066]
[1722430240229,3.00242,3330.7,3329.8,0.37655066]
[1722430240424,5.60543293,3331.0,3329.9,2.2576]
[1722430240681,3.00223,3330.9,3329.9,2.82733323]
[1722430240829,3.00223,3330.9,3330.0,0.12945135]
[1722430241340,0.96843,3331.0,3330.0,0.12945135]
[1722430241738,3.00226,3330.9,3330.0,0.12945135]
[1722430242648,3.00228,3330.8,3330.0,0.12945135]
[1722430243279,3.00243,3330.7,3330.0,0.12945135]
[1722430243481,3.00255,3330.5,3330.0,0.12945135]
[1722430243682,3.00255,3330.5,3329.9,2.2576]
[1722430244016,3.00255,3330.5,3330.1,0.12945135]
[1722430244170,6.00517,3330.5,3329.9,2.2576]
[1722430244371,3.00255,3330.5,3330.2,0.12945135]
[1722430244573,3.00255,3330.5,3329.6,2.3646]
[1722430244574,3.00256,3330.5,3329.6,2.3646]
[1722430244775,3.00274,3330.3,3329.6,2.3646]
[1722430245086,3.00283,3330.2,3329.6,2.3646]
[1722430245461,3.00296,3330.1,3329.6,2.3646]
[1722430245914,6.00607,3330.0,3329.3,2.3517]
[1722430246202,0.60053,3330.3,3329.3,2.3517]
[1722430246203,3.00315,3329.9,3329.3,2.3517]
[1722430246572,3.00318,3329.8,3329.4,0.12950347]
[1722430247005,3.00318,3329.8,3329.3,2.3517]
[1722430247837,6.00608,3330.0,3329.3,2.3517]
[1722430248127,3.00301,3330.0,3329.3,2.3517]
[1722430248476,3.00301,3330.0,3329.4,0.12950347]
[1722430248709,3.00301,3330.0,3329.3,2.3517]
[1722430248710,6.606667,3330.0,3329.3,2.3517]
[1722430248974,6.606667,3330.0,3329.5,0.12950347]
[1722430248975,3.0031,3329.9,3329.5,0.12950347]
[1722430249170,3.0031,3329.9,3329.3,2.3517]
[1722430249631,3.00321,3329.8,3329.4,0.12950347]
[1722430249784,3.00334,3329.7,3329.4,0.12950347]
[1722430250289,3.00338,3329.6,3329.0,0.3005]
[1722430250524,3.00338,3329.6,3329.5,0.12980879]
[1722430250817,3.00338,3329.6,3329.0,0.3005]
[1722430251224,3.00338,3329.6,3329.1,0.12982368]
[1722430251432,3.00356,3329.4,3329.1,0.12982368]
[1722430251593,0.300356,3329.3,3329.1,0.12982368]
[1722430251930,3.304036,3329.3,3328.6,0.3005]
[1722430252230,3.304036,3329.3,3328.8,0.3005]
[1722430252378,0.300356,3329.3,3328.8,0.3005]
[1722430252583,3.00377,3329.2,3328.8,0.3005]
[1722430252831,3.00377,3329.2,3329.0,0.3005]
[1722430253323,3.00359,3329.4,3329.0,0.3005]
[1722430254191,3.00341,3329.6,3329.0,0.3005]
[1722430254532,7.41,3329.7,3329.1,0.12556405]
[1722430254533,10.4133,3329.7,3329.1,0.12556405]
[1722430254835,1.573712,3329.6,3329.1,0.12556405]
[1722430255123,1.573712,3329.6,3328.8,0.3005]
[1722430255322,1.573712,3329.6,3329.2,0.12556405]
[1722430255628,1.573712,3329.6,3329.2,2.3398]
[1722430255936,1.573712,3329.6,3329.3,0.12556405]
[1722430256212,1.573712,3329.6,3328.7,0.3005]
[1722430256213,3.00316,3329.9,3329.0,0.3005]
[1722430256522,12.43,3330.0,3329.0,0.3005]
[1722430256692,12.43,3330.0,3329.1,0.12556405]
[1722430256895,2.21083,3329.9,3329.1,0.12556405]
[1722430257093,2.21083,3329.9,3329.0,3.30437]
[1722430257299,7.41,3330.1,3329.2,0.12556405]
[1722430257627,7.41,3330.1,3329.4,5.35141]
[1722430257823,7.41,3330.1,3329.6,3.00336]
[1722430258178,7.41,3330.1,3329.7,0.12556405]
[1722430258880,7.41,3330.1,3329.8,0.12556405]
[1722430259209,7.41,3330.1,3329.4,5.35138]
[1722430259410,7.41,3330.1,3329.9,0.12556405]
[1722430259614,7.41,3330.1,3329.6,3.00335]
[1722430259825,7.41,3330.1,3330.0,0.12556405]
[1722430259996,5.44567,3330.7,3329.4,5.35138]
[1722430259997,12.85567,3330.7,3329.4,5.35138]
[1722430260207,12.85567,3330.7,3330.0,0.12543745]
[1722430260208,3.00257,3330.5,3330.0,0.12543745]
[1722430260533,3.00257,3330.5,3329.4,5.35135]
[1722430260534,4.588394,3330.5,3330.1,0.12543745]
[1722430260735,1.585824,3330.5,3329.4,5.35135]
[1722430260894,12.85572,3330.7,3330.2,0.12544489]
[1722430261107,3.00251,3330.6,3329.4,5.35137]
[1722430261427,3.00263,3330.5,3330.3,0.12544489]
[1722430261731,3.00269,3330.4,3329.4,2.3479]
[1722430261931,3.00269,3330.4,3329.5,0.12528851]
[1722430262137,3.302959,3330.4,3329.5,0.12528851]
[1722430264052,0.300269,3330.4,3329.5,0.12528851]
[1722430264328,7.41,3330.7,3329.7,2.655]
[1722430264488,7.41,3330.7,3329.8,0.12529223]
[1722430265033,7.41,3330.7,3330.1,5.3279]
[1722430265237,7.41,3330.7,3330.1,7.98285]
[1722430265384,7.41,3330.7,3330.2,0.12528479]
[1722430267136,7.41,3330.7,3330.2,3.12808479]
[1722430267626,7.41,3330.7,3330.2,3.12804479]
[1722430268212,7.41,3330.7,3330.2,0.12528479]
[1722430268413,0.34734799,3330.6,3330.2,0.12528479]
[1722430269233,7.41,3330.7,3330.2,0.12528479]
[1722430270490,5.20277824,3331.1,3330.2,0.12528479]
[1722430270935,2.20071824,3331.1,3330.2,0.12528479]
[1722430271141,9.61071824,3331.3,3330.5,2.325]
[1722430271289,10.87195806,3331.3,3330.6,3.12749005]
[1722430271493,8.67123982,3331.3,3330.6,3.12749005]
[1722430273107,7.41,3331.3,3330.6,3.12749005]
[1722430273310,7.41,3331.3,3330.6,3.12747005]
[1722430273620,7.41,3331.3,3330.7,3.00231]
[1722430273993,7.41,3331.3,3330.8,0.12475622]
[1722430274249,7.41,3331.3,3331.0,2.325]
[1722430274389,2.20087185,3331.8,3331.0,2.325]
[1722430274731,2.20087185,3331.6,3331.1,0.12475622]
[1722430275039,2.20087185,3331.6,3330.1,2.9555]
[1722430275040,3.00202,3331.1,3330.4,2.325]
[1722430275395,5.20289185,3331.1,3330.5,0.12459991]
[1722430275600,2.20087185,3331.1,3330.5,0.12459991]
[1722430275822,5.20289185,3331.1,3330.5,0.12459991]
[1722430276012,3.0021,3331.0,3330.4,2.325]
[1722430276331,3.0021,3331.0,3329.9,3.00302]
[1722430276332,3.00219,3330.9,3330.0,5.362]
[1722430276522,3.00219,3330.9,3330.1,0.12459991]
[1722430277527,5.20316837,3330.9,3330.1,0.12459991]
[1722430278313,5.72341756,3331.0,3330.1,0.12459991]
[1722430278726,2.20097837,3330.9,3330.1,0.12459991]
[1722430279121,3.52243919,3331.0,3330.1,0.12459991]
[1722430279319,2.85361783,3330.9,3330.1,0.12459991]
[1722430279540,0.65244592,3330.9,3330.1,0.12459991]
[1722430279855,2.85361783,3330.9,3330.1,0.12459991]
[1722430280149,3.00237,3330.7,3330.1,0.12459991]
[1722430280443,3.00247,3330.6,3330.1,0.12459991]
[1722430280676,3.00273,3330.3,3330.1,0.12459991]
[1722430280826,3.00273,3330.3,3329.3,2.3958]
[1722430281164,6.00553,3330.3,3329.4,0.12061777]
[1722430281370,3.00273,3330.3,3329.4,0.12061777]
[1722430281783,3.00273,3330.3,3329.3,5.3958]
[1722430282054,3.00273,3330.3,3329.5,0.12061777]
[1722430282260,3.00273,3330.3,3329.4,3.04901288]
[1722430282567,3.00273,3330.3,3329.6,0.12061777]
[1722430282747,6.00553,3330.3,3329.3,5.3958]
[1722430282952,3.87787829,3330.3,3329.7,0.12061777]
[1722430285729,3.0032,3329.8,3329.3,0.12093044]
[1722430286056,3.0032,3329.8,3329.2,2.9555]
[1722430286266,3.0032,3329.8,3329.4,0.12119848]
[1722430286427,3.0032,3329.8,3329.1,0.3005]
[1722430286622,3.0032,3329.8,3329.5,0.12119848]
[1722430286823,5.96037814,3330.0,3329.1,3.3005]
[1722430287076,3.75873137,3330.0,3329.6,0.12122827]
[1722430287289,3.75873137,3330.0,3329.1,3.3005]
[1722430287581,3.75873137,3330.0,3329.2,0.12122827]
[1722430288467,3.0031,3329.9,3329.2,0.12122827]
[1722430289377,0.75573137,3330.0,3329.2,0.12122827]
[1722430289550,5.35566,3330.1,3329.2,0.12122827]
[1722430289751,3.00301,3330.0,3329.2,0.12122827]
[1722430290150,3.0031,3329.9,3329.2,0.12122827]
[1722430291667,3.00297,3330.1,3329.2,0.12122827]
[1722430291882,2.20132249,3330.2,3329.3,2.342]
[1722430292189,8.28514829,3330.3,3329.4,35.0]
[1722430292495,8.28514829,3330.3,3329.4,35.12122827]
[1722430292662,8.28514829,3330.3,3329.4,0.12122827]
[1722430292866,1.33342006,3330.2,3329.4,0.12122827]
[1722430293473,4.33625006,3330.2,3329.4,0.12122827]
[1722430293667,3.00305,3330.0,3329.4,0.12122827]
[1722430293887,3.00304,3330.0,3329.4,0.12122827]
[1722430294105,3.00324,3329.8,3329.1,0.3005]
[1722430294253,0.300324,3329.7,3329.5,0.12128411]
[1722430294453,0.300324,3329.7,3329.1,0.3005]
[1722430294650,0.300324,3329.7,3329.6,0.12122825]
[1722430294898,0.300324,3329.7,3329.1,0.3005]
[1722430295064,3.303594,3329.7,3329.1,0.3005]
[1722430295517,3.303594,3329.7,3329.2,0.121299]
[1722430295721,0.300324,3329.7,3329.2,0.121299]
[1722430295922,5.20401944,3330.1,3329.2,0.121299]
[1722430296128,3.00294,3330.1,3329.2,0.121299]
[1722430296883,3.53473816,3330.2,3329.2,0.121299]
[1722430296884,3.00303,3330.0,3329.2,0.121299]
[1722430297231,3.303443,3329.9,3329.2,0.121299]
[1722430297380,3.00296,3330.1,3329.2,0.121299]
[1722430298018,5.2042781,3330.1,3329.2,0.121299]
[1722430298199,3.003,3330.0,3329.2,0.121299]
[1722430298399,3.00309,3329.9,3329.2,0.121299]
[1722430298782,5.2042781,3330.1,3329.2,0.121299]
[1722430298987,0.65376982,3330.0,3329.2,0.121299]
[1722430299845,3.65677982,3330.0,3329.2,0.121299]
[1722430300523,5.85896168,3330.0,3329.2,0.121299]
[1722430301124,2.85595168,3330.0,3329.2,0.121299]
[1722430302222,3.00309,3329.9,3329.2,0.121299]
[1722430302445,2.2813,3329.7,3329.2,0.121299]
[1722430302583,6.00726,3329.3,3329.2,0.121299]
[1722430302789,3.00363,3329.3,3328.9,0.3005]
[1722430303032,3.00386,3329.1,3328.9,0.3005]
[1722430303201,5.20713522,3329.3,3328.9,0.3005]
[1722430303202,6.0078,3329.0,3328.9,0.3005]
[1722430303527,3.00408,3328.8,3328.2,2.3702]
[1722430303933,3.00408,3328.8,3328.3,0.11724651]
[1722430304349,3.00449,3328.4,3327.6,2.655]
[1722430304647,5.28569,3328.5,3327.2,3.00552]
[1722430304936,3.00463,3328.2,3327.2,3.872131]
[1722430305117,3.00452,3328.4,3327.3,3.00543]
[1722430305486,7.41,3328.5,3327.5,5.6602]
[1722430305743,7.41,3328.5,3327.6,0.06010288]
[1722430306041,7.41,3328.5,3327.9,2.655]
[1722430306336,13.01082352,3328.9,3327.9,2.655]
[1722430306337,0.58082352,3328.9,3327.9,2.655]
[1722430306544,0.60078,3329.0,3327.9,2.655]
[1722430306545,3.0,3329.0,3327.9,2.655]
[1722430306833,3.00404,3328.9,3327.9,2.655]
[1722430307002,3.0,3329.0,3327.9,5.65983]
[1722430307199,12.61473227,3329.1,3328.3,2.655]
[1722430307200,7.41,3329.1,3328.3,2.655]
[1722430307437,10.41382,3329.1,3328.3,2.655]
[1722430307585,11.683332,3329.1,3328.4,0.11445388]
[1722430308034,11.683332,3329.1,3328.3,2.655]
[1722430308400,11.683332,3329.1,3328.4,0.11446503]
[1722430308813,11.683332,3329.1,3328.1,2.655]
[1722430309241,11.683332,3329.1,3328.2,0.11446503]
[1722430309517,11.683332,3329.1,3328.5,2.655]
[1722430309518,7.41,3329.1,3328.5,2.655]
[1722430310385,7.41,3329.1,3328.6,0.11446503]
[1722430310617,3.00368,3329.3,3328.6,0.11446503]
[1722430310812,15.43356,3329.4,3328.6,0.11446503]
[1722430310813,3.00373,3329.2,3328.6,0.11446503]
[1722430311013,1.843729,3329.2,3328.6,0.11446503]
[1722430311335,4.125029,3329.2,3328.6,0.11446503]
[1722430311544,3.00417,3328.7,3328.1,2.655]
[1722430312055,3.00417,3328.7,3328.2,0.11427183]
[1722430312056,3.00437,3328.5,3328.2,0.11427183]
[1722430312350,2.19837979,3329.1,3328.2,0.11427183]
[1722430312351,3.00453,3328.3,3328.2,0.11427183]
[1722430312488,3.00466,3328.2,3327.3,2.655]
[1722430312818,3.605437,3328.3,3327.4,0.11291682]
[1722430313018,3.00464,3328.2,3327.4,0.11291682]
[1722430313757,3.605457,3328.3,3327.4,0.11291682]
[1722430314034,3.00456,3328.3,3327.4,0.11291682]
[1722430314194,3.00456,3328.3,3327.4,3.11291682]
[1722430314543,3.00456,3328.3,3327.5,3.0]
[1722430314890,3.00465,3328.2,3327.6,0.11302456]
[1722430315518,3.00465,3328.2,3327.4,3.0]
[1722430315702,3.00444,3328.4,3327.7,0.11302456]
[1722430315920,3.00444,3328.4,3327.4,4.10307]
[1722430316122,3.00455,3328.3,3327.8,0.11302456]
[1722430316336,3.00455,3328.3,3327.4,3.0]
[1722430316817,3.00455,3328.3,3327.5,0.11302456]
[1722430318193,3.00465,3328.2,3327.5,0.11302456]
[1722430318750,3.00472,3328.1,3327.5,0.11302456]
[1722430319397,3.00468,3328.2,3327.5,0.11302456]
[1722430319599,3.605429,3328.3,3327.3,5.66042]
[1722430319799,3.605429,3328.3,3327.4,0.1134481]
[1722430319800,0.3605479,3328.2,3327.4,0.1134481]
[1722430321150,3.00472,3328.1,3327.4,0.1134481]
[1722430321733,0.3605479,3328.2,3327.4,0.1134481]
[1722430321931,3.00454,3328.3,3327.4,0.1134481]
[1722430322296,7.41,3328.6,3327.4,0.1134481]
[1722430322556,10.41426,3328.6,3327.5,6.01045]
[1722430322768,7.41,3328.6,3327.7,2.655]
[1722430323046,7.41,3328.6,3327.8,0.11345925]
[1722430323247,8.26275913,3328.6,3327.8,0.11345925]
[1722430323712,11.26709913,3328.6,3327.8,0.11345925]
[1722430323921,0.85275913,3328.6,3327.8,0.11345925]
[1722430324105,3.00416,3328.8,3327.8,0.11345925]
[1722430324936,10.41403,3328.9,3327.9,2.3841]
[1722430325148,7.41,3328.9,3328.1,2.655]
[1722430325646,7.41,3328.9,3328.2,0.11345925]
[1722430325946,1.041396,3328.8,3328.2,0.11345925]
[1722430326718,7.41,3328.9,3328.2,0.11345925]
[1722430326925,4.847479,3329.2,3328.2,0.11345925]
[1722430326926,3.00382,3329.1,3328.2,0.11345925]
[1722430327152,1.843729,3329.2,3328.2,0.11345925]
[1722430327351,4.847469,3329.2,3328.2,0.11345925]
[1722430327537,2.4687469,3329.1,3328.2,0.11345925]
[1722430327717,2.4687469,3329.1,3328.2,3.11804925]
[1722430327901,2.4687469,3329.1,3328.2,0.11345925]
[1722430328098,3.00399,3329.0,3328.2,0.11345925]
[1722430328304,3.00418,3328.7,3328.2,0.11345925]
[1722430328499,3.00427,3328.6,3328.2,0.11345925]
[1722430328747,3.00427,3328.6,3327.9,2.3841]
[1722430328951,0.600832,3328.7,3328.3,0.1130914]
[1722430329152,0.600832,3328.7,3327.8,3.0]
[1722430329502,0.600832,3328.7,3327.9,0.11303567]
[1722430329503,3.00431,3328.6,3327.9,0.11303567]
[1722430329648,3.3648242,3328.6,3327.9,0.11303567]
[1722430330670,3.00445,3328.4,3327.9,0.11303567]
[1722430330871,3.3648242,3328.6,3327.9,0.11303567]